[Event "Live Chess"]
[Site "Chess.com"]
[Date "2010.12.15"]
[Round "-"]
[White "hipposcottimus"]
[Black "tobby59"]
[Result "1-0"]
[CurrentPosition "r7/2p1kp2/2p5/p7/5NQp/4B1nP/PP4PK/3R4 b - -"]
[Timezone "UTC"]
[ECO "B00"]
[ECOUrl "https://www.chess.com/openings/Kings-Pawn-Opening-Goldsmith-Defense-2.d4"]
[UTCDate "2010.12.15"]
[UTCTime "01:33:12"]
[WhiteElo "1634"]
[BlackElo "1376"]
[TimeControl "60"]
[Termination "hipposcottimus won on time"]
[StartTime "01:33:12"]
[EndDate "2010.12.15"]
[EndTime "01:35:12"]
[Link "https://www.chess.com/game/live/77394054"]

1. e4 {[%clk 0:01:00]} 1... h5 {[%clk 0:01:00]} 2. d4 {[%clk 0:00:58.3]} 2... a5 {[%clk 0:00:58]} 3. e5 {[%clk 0:00:56.9]} 3... d5 {[%clk 0:00:56.7]} 4. exd6 {[%clk 0:00:55.5]} 4... Qxd6 {[%clk 0:00:54.3]} 5. Ne2 {[%clk 0:00:55.1]} 5... Bg4 {[%clk 0:00:53.5]} 6. f3 {[%clk 0:00:53.4]} 6... Bf5 {[%clk 0:00:52.1]} 7. Nec3 {[%clk 0:00:51.4]} 7... Nc6 {[%clk 0:00:48.9]} 8. Bb5 {[%clk 0:00:50]} 8... Kd8 {[%clk 0:00:45.5]} 9. Bxc6 {[%clk 0:00:48.2]} 9... bxc6 {[%clk 0:00:44.6]} 10. O-O {[%clk 0:00:47.2]} 10... e5 {[%clk 0:00:38.1]} 11. f4 {[%clk 0:00:46.8]} 11... exd4 {[%clk 0:00:36.1]} 12. Ne2 {[%clk 0:00:43.8]} 12... d3 {[%clk 0:00:34.8]} 13. cxd3 {[%clk 0:00:41.7]} 13... Bxd3 {[%clk 0:00:33.3]} 14. Nd2 {[%clk 0:00:39.7]} 14... Bxe2 {[%clk 0:00:32]} 15. Qxe2 {[%clk 0:00:38.9]} 15... Nf6 {[%clk 0:00:30.1]} 16. Rd1 {[%clk 0:00:37.2]} 16... Qc5+ {[%clk 0:00:23.4]} 17. Kh1 {[%clk 0:00:32.8]} 17... Ng4 {[%clk 0:00:22.5]} 18. Nb3+ {[%clk 0:00:31.7]} 18... Qd6 {[%clk 0:00:17.5]} 19. Rxd6+ {[%clk 0:00:31.2]} 19... Bxd6 {[%clk 0:00:15.5]} 20. h3 {[%clk 0:00:29.4]} 20... Nf6 {[%clk 0:00:12.5]} 21. Be3 {[%clk 0:00:26.2]} 21... Kd7 {[%clk 0:00:11.4]} 22. Rd1 {[%clk 0:00:25.8]} 22... Rhe8 {[%clk 0:00:10.3]} 23. Nd4 {[%clk 0:00:25]} 23... Ne4 {[%clk 0:00:07.4]} 24. Nf5 {[%clk 0:00:23.4]} 24... Ng3+ {[%clk 0:00:06.3]} 25. Kh2 {[%clk 0:00:20.3]} 25... h4 {[%clk 0:00:05.5]} 26. Qg4 {[%clk 0:00:17.5]} 26... Re6 {[%clk 0:00:04.3]} 27. Nxg7 {[%clk 0:00:16.4]} 27... Ke7 {[%clk 0:00:01.8]} 28. Nxe6 {[%clk 0:00:16.1]} 28... Bxf4 {[%clk 0:00:00.7]} 29. Nxf4 {[%clk 0:00:13.7]} 1-0

[Event "Live Chess"]
[Site "Chess.com"]
[Date "2010.12.15"]
[Round "-"]
[White "tobby59"]
[Black "hipposcottimus"]
[Result "0-1"]
[CurrentPosition "8/p3k2p/8/8/8/5K1r/8/8 w - -"]
[Timezone "UTC"]
[ECO "C20"]
[ECOUrl "https://www.chess.com/openings/Kings-Pawn-Opening-Leonardis-Variation"]
[UTCDate "2010.12.15"]
[UTCTime "01:30:40"]
[WhiteElo "1379"]
[BlackElo "1631"]
[TimeControl "60"]
[Termination "hipposcottimus won on time"]
[StartTime "01:30:40"]
[EndDate "2010.12.15"]
[EndTime "01:32:56"]
[Link "https://www.chess.com/game/live/77393500"]

1. e4 {[%clk 0:01:00]} 1... e5 {[%clk 0:01:00]} 2. d3 {[%clk 0:00:59.3]} 2... Nc6 {[%clk 0:00:59.3]} 3. h4 {[%clk 0:00:58.7]} 3... d5 {[%clk 0:00:55.8]} 4. Be2 {[%clk 0:00:56.9]} 4... dxe4 {[%clk 0:00:54.1]} 5. dxe4 {[%clk 0:00:55.6]} 5... Nd4 {[%clk 0:00:53.9]} 6. c3 {[%clk 0:00:52.9]} 6... Nxe2 {[%clk 0:00:53]} 7. Qxe2 {[%clk 0:00:51.4]} 7... Bd6 {[%clk 0:00:49.1]} 8. Bg5 {[%clk 0:00:50.2]} 8... Nf6 {[%clk 0:00:48.5]} 9. Nf3 {[%clk 0:00:46.9]} 9... Bg4 {[%clk 0:00:44.5]} 10. Qb5+ {[%clk 0:00:45.3]} 10... c6 {[%clk 0:00:43]} 11. Qxb7 {[%clk 0:00:44.1]} 11... Rb8 {[%clk 0:00:40.7]} 12. Qxc6+ {[%clk 0:00:42.1]} 12... Qd7 {[%clk 0:00:36.6]} 13. Qxd7+ {[%clk 0:00:40.7]} 13... Nxd7 {[%clk 0:00:36.2]} 14. Nbd2 {[%clk 0:00:34]} 14... Rxb2 {[%clk 0:00:34.3]} 15. Rd1 {[%clk 0:00:32]} 15... Nc5 {[%clk 0:00:32.8]} 16. Ke2 {[%clk 0:00:26.2]} 16... O-O {[%clk 0:00:23.9]} 17. Be3 {[%clk 0:00:25.1]} 17... Na4 {[%clk 0:00:21.3]} 18. h5 {[%clk 0:00:24.2]} 18... Nxc3+ {[%clk 0:00:19.3]} 19. Kd3 {[%clk 0:00:22.3]} 19... Nxd1 {[%clk 0:00:18.2]} 20. Rxd1 {[%clk 0:00:21.9]} 20... Rxd2+ {[%clk 0:00:17.4]} 21. Rxd2 {[%clk 0:00:20.9]} 21... Bxf3 {[%clk 0:00:16.7]} 22. gxf3 {[%clk 0:00:20.1]} 22... Rd8 {[%clk 0:00:16.4]} 23. Ke2 {[%clk 0:00:17.5]} 23... Rd7 {[%clk 0:00:14.5]} 24. Rb2 {[%clk 0:00:16]} 24... Kf8 {[%clk 0:00:13.5]} 25. Rb8+ {[%clk 0:00:14.8]} 25... Ke7 {[%clk 0:00:13.1]} 26. f4 {[%clk 0:00:13.5]} 26... Bxb8 {[%clk 0:00:12.3]} 27. fxe5 {[%clk 0:00:11.9]} 27... Rb7 {[%clk 0:00:11.2]} 28. Kf3 {[%clk 0:00:11.1]} 28... Rb2 {[%clk 0:00:09.1]} 29. Bg5+ {[%clk 0:00:10.5]} 29... f6 {[%clk 0:00:06.8]} 30. exf6+ {[%clk 0:00:08.9]} 30... gxf6 {[%clk 0:00:06.5]} 31. Bf4 {[%clk 0:00:08.3]} 31... Bxf4 {[%clk 0:00:05.6]} 32. Kxf4 {[%clk 0:00:07.1]} 32... Rxf2+ {[%clk 0:00:05.3]} 33. Ke3 {[%clk 0:00:05.9]} 33... Rxa2 {[%clk 0:00:05.1]} 34. e5 {[%clk 0:00:04.5]} 34... Ra3+ {[%clk 0:00:04.8]} 35. Kf4 {[%clk 0:00:03.4]} 35... fxe5+ {[%clk 0:00:04.5]} 36. Kxe5 {[%clk 0:00:02.5]} 36... Ra5+ {[%clk 0:00:04.2]} 37. Kf4 {[%clk 0:00:00.8]} 37... Rxh5 {[%clk 0:00:03.9]} 38. Kf3 {[%clk 0:00:00.1]} 38... Rh3+ {[%clk 0:00:03]} 0-1

[Event "Live Chess"]
[Site "Chess.com"]
[Date "2010.12.15"]
[Round "-"]
[White "hipposcottimus"]
[Black "tobby59"]
[Result "1-0"]
[CurrentPosition "2b5/2pk1R1q/2r1p1p1/8/pP1P4/8/P2K2PP/3R4 b - -"]
[Timezone "UTC"]
[ECO "B07"]
[ECOUrl "https://www.chess.com/openings/Pirc-Defense"]
[UTCDate "2010.12.15"]
[UTCTime "01:28:20"]
[WhiteElo "1628"]
[BlackElo "1382"]
[TimeControl "60"]
[Termination "hipposcottimus won on time"]
[StartTime "01:28:20"]
[EndDate "2010.12.15"]
[EndTime "01:30:29"]
[Link "https://www.chess.com/game/live/77392950"]

1. e4 {[%clk 0:01:00]} 1... d6 {[%clk 0:01:00]} 2. d3 {[%clk 0:00:58.8]} 2... h5 {[%clk 0:00:59.6]} 3. f4 {[%clk 0:00:57.1]} 3... a5 {[%clk 0:00:58.7]} 4. Be2 {[%clk 0:00:56.2]} 4... Ra6 {[%clk 0:00:57.6]} 5. Bxh5 {[%clk 0:00:55]} 5... g6 {[%clk 0:00:54.7]} 6. Be2 {[%clk 0:00:53.8]} 6... Rc6 {[%clk 0:00:53.2]} 7. Nc3 {[%clk 0:00:51.5]} 7... Nf6 {[%clk 0:00:51.7]} 8. Nd5 {[%clk 0:00:47.9]} 8... e6 {[%clk 0:00:49.3]} 9. Nxf6+ {[%clk 0:00:46]} 9... Qxf6 {[%clk 0:00:48.9]} 10. Nf3 {[%clk 0:00:44.1]} 10... Bh6 {[%clk 0:00:45.2]} 11. e5 {[%clk 0:00:43.2]} 11... dxe5 {[%clk 0:00:43.8]} 12. fxe5 {[%clk 0:00:42.7]} 12... Qf5 {[%clk 0:00:39.1]} 13. Nd4 {[%clk 0:00:35.1]} 13... Qxe5 {[%clk 0:00:29.3]} 14. Nxc6 {[%clk 0:00:33.8]} 14... bxc6 {[%clk 0:00:28.7]} 15. Bxh6 {[%clk 0:00:31.5]} 15... Rxh6 {[%clk 0:00:27.5]} 16. Qd2 {[%clk 0:00:31]} 16... Rh4 {[%clk 0:00:24]} 17. O-O-O {[%clk 0:00:29.6]} 17... Rb4 {[%clk 0:00:21.3]} 18. b3 {[%clk 0:00:24.9]} 18... a4 {[%clk 0:00:20]} 19. c3 {[%clk 0:00:23.9]} 19... Rb6 {[%clk 0:00:17.7]} 20. b4 {[%clk 0:00:22]} 20... c5 {[%clk 0:00:15.8]} 21. d4 {[%clk 0:00:21.2]} 21... cxd4 {[%clk 0:00:14.5]} 22. cxd4 {[%clk 0:00:20.6]} 22... Qd5 {[%clk 0:00:13.2]} 23. Bf3 {[%clk 0:00:18.6]} 23... Qd6 {[%clk 0:00:11.8]} 24. Qh6 {[%clk 0:00:15.5]} 24... Kd7 {[%clk 0:00:08.8]} 25. Qg7 {[%clk 0:00:13.9]} 25... Nc6 {[%clk 0:00:07.7]} 26. Qxf7+ {[%clk 0:00:12.9]} 26... Qe7 {[%clk 0:00:04.8]} 27. Bxc6+ {[%clk 0:00:11]} 27... Rxc6+ {[%clk 0:00:03]} 28. Kd2 {[%clk 0:00:06.9]} 28... Qxf7 {[%clk 0:00:02.6]} 29. Rhf1 {[%clk 0:00:06.5]} 29... Qh7 {[%clk 0:00:00.6]} 30. Rf7+ {[%clk 0:00:06.1]} 1-0

[Event "Live Chess"]
[Site "Chess.com"]
[Date "2010.12.15"]
[Round "-"]
[White "hipposcottimus"]
[Black "WALIED80"]
[Result "0-1"]
[CurrentPosition "2kr4/Bpp3p1/4q3/4P3/N7/1K3Q2/PP4P1/5R2 w - -"]
[Timezone "UTC"]
[ECO "C50"]
[ECOUrl "https://www.chess.com/openings/Italian-Game-Blackburne-Shilling-Gambit"]
[UTCDate "2010.12.15"]
[UTCTime "01:24:51"]
[WhiteElo "1625"]
[BlackElo "1781"]
[TimeControl "60"]
[Termination "WALIED80 won on time"]
[StartTime "01:24:51"]
[EndDate "2010.12.15"]
[EndTime "01:27:05"]
[Link "https://www.chess.com/game/live/77392170"]

1. e4 {[%clk 0:01:00]} 1... e5 {[%clk 0:01:00]} 2. Nf3 {[%clk 0:00:59.3]} 2... Nc6 {[%clk 0:00:59.7]} 3. Bc4 {[%clk 0:00:59]} 3... Nd4 {[%clk 0:00:59.1]} 4. Nxd4 {[%clk 0:00:57.5]} 4... exd4 {[%clk 0:00:58.2]} 5. d3 {[%clk 0:00:57.2]} 5... d6 {[%clk 0:00:57.3]} 6. c3 {[%clk 0:00:56.9]} 6... Be6 {[%clk 0:00:56.3]} 7. cxd4 {[%clk 0:00:55]} 7... Bxc4 {[%clk 0:00:55.1]} 8. dxc4 {[%clk 0:00:54.7]} 8... Be7 {[%clk 0:00:53.1]} 9. Nc3 {[%clk 0:00:54.3]} 9... Nf6 {[%clk 0:00:52.3]} 10. O-O {[%clk 0:00:53.9]} 10... Qd7 {[%clk 0:00:50.6]} 11. f4 {[%clk 0:00:53.4]} 11... O-O-O {[%clk 0:00:49.5]} 12. e5 {[%clk 0:00:53]} 12... dxe5 {[%clk 0:00:47.7]} 13. fxe5 {[%clk 0:00:52.7]} 13... Ng4 {[%clk 0:00:44]} 14. Kh1 {[%clk 0:00:46.1]} 14... h5 {[%clk 0:00:42.5]} 15. h3 {[%clk 0:00:44.9]} 15... f6 {[%clk 0:00:37.6]} 16. hxg4 {[%clk 0:00:38.8]} 16... hxg4+ {[%clk 0:00:36.6]} 17. Kg1 {[%clk 0:00:38.5]} 17... g3 {[%clk 0:00:34.7]} 18. Be3 {[%clk 0:00:33.9]} 18... fxe5 {[%clk 0:00:33.7]} 19. dxe5 {[%clk 0:00:30.8]} 19... Qe6 {[%clk 0:00:29.5]} 20. Qf3 {[%clk 0:00:27.4]} 20... Qxc4 {[%clk 0:00:26.7]} 21. Qxg3 {[%clk 0:00:24.5]} 21... Bh4 {[%clk 0:00:24.1]} 22. Qf3 {[%clk 0:00:22.2]} 22... Rdf8 {[%clk 0:00:19.5]} 23. Qd5 {[%clk 0:00:16.7]} 23... Rxf1+ {[%clk 0:00:11.8]} 24. Rxf1 {[%clk 0:00:15.6]} 24... Qg4 {[%clk 0:00:08.4]} 25. Qf3 {[%clk 0:00:12.3]} 25... Bf2+ {[%clk 0:00:07.1]} 26. Kxf2 {[%clk 0:00:10.8]} 26... Qh4+ {[%clk 0:00:05.7]} 27. Ke2 {[%clk 0:00:09.7]} 27... Qc4+ {[%clk 0:00:04.2]} 28. Kd2 {[%clk 0:00:07.6]} 28... Rd8+ {[%clk 0:00:04.2]} 29. Kc2 {[%clk 0:00:06.6]} 29... Qd3+ {[%clk 0:00:03.9]} 30. Kb3 {[%clk 0:00:05.2]} 30... Qa6 {[%clk 0:00:02.3]} 31. Na4 {[%clk 0:00:03.8]} 31... Qc6 {[%clk 0:00:02.3]} 32. Bxa7 {[%clk 0:00:00.5]} 32... Qe6+ {[%clk 0:00:02.3]} 0-1

[Event "Live Chess"]
[Site "Chess.com"]
[Date "2010.12.15"]
[Round "-"]
[White "caturku1"]
[Black "hipposcottimus"]
[Result "0-1"]
[CurrentPosition "r1b1r3/pp3k1p/2p2Np1/6R1/1P6/2P2K2/P5PP/8 w - -"]
[Timezone "UTC"]
[ECO "C44"]
[ECOUrl "https://www.chess.com/openings/Ponziani-Opening-Jaenisch-Counterattack-4.d4"]
[UTCDate "2010.12.15"]
[UTCTime "01:23:24"]
[WhiteElo "1388"]
[BlackElo "1630"]
[TimeControl "60"]
[Termination "hipposcottimus won on time"]
[StartTime "01:23:24"]
[EndDate "2010.12.15"]
[EndTime "01:24:27"]
[Link "https://www.chess.com/game/live/77391601"]

1. e4 {[%clk 0:01:00]} 1... e5 {[%clk 0:01:00]} 2. Nf3 {[%clk 0:01:00]} 2... Nc6 {[%clk 0:00:59.7]} 3. c3 {[%clk 0:01:00]} 3... Nf6 {[%clk 0:00:59.4]} 4. d4 {[%clk 0:01:00]} 4... d5 {[%clk 0:00:59.1]} 5. Bd3 {[%clk 0:00:58.6]} 5... dxe4 {[%clk 0:00:58.4]} 6. Bxe4 {[%clk 0:00:57.5]} 6... Nxe4 {[%clk 0:00:56.9]} 7. Nxe5 {[%clk 0:00:57.5]} 7... Nxe5 {[%clk 0:00:55.4]} 8. dxe5 {[%clk 0:00:52.2]} 8... Qxd1+ {[%clk 0:00:54.6]} 9. Kxd1 {[%clk 0:00:52.2]} 9... Nxf2+ {[%clk 0:00:54.3]} 10. Ke2 {[%clk 0:00:52.2]} 10... Nxh1 {[%clk 0:00:53.7]} 11. Bf4 {[%clk 0:00:50.9]} 11... Bc5 {[%clk 0:00:53]} 12. Nd2 {[%clk 0:00:50.9]} 12... O-O {[%clk 0:00:49.6]} 13. b4 {[%clk 0:00:50.9]} 13... Bb6 {[%clk 0:00:41.2]} 14. Rxh1 {[%clk 0:00:50.5]} 14... f6 {[%clk 0:00:39.7]} 15. Rf1 {[%clk 0:00:50.5]} 15... fxe5 {[%clk 0:00:38.1]} 16. Bxe5 {[%clk 0:00:47.4]} 16... Rd8 {[%clk 0:00:37.5]} 17. Ne4 {[%clk 0:00:44.9]} 17... Re8 {[%clk 0:00:37.1]} 18. Rf5 {[%clk 0:00:43.7]} 18... c6 {[%clk 0:00:36.4]} 19. Rg5 {[%clk 0:00:42.5]} 19... g6 {[%clk 0:00:34.5]} 20. Bf6 {[%clk 0:00:39]} 20... Bd8 {[%clk 0:00:33.6]} 21. Kf3 {[%clk 0:00:38.8]} 21... Bxf6 {[%clk 0:00:32.2]} 22. Nxf6+ {[%clk 0:00:37.8]} 22... Kf7 {[%clk 0:00:30.9]} 0-1

[Event "Live Chess"]
[Site "Chess.com"]
[Date "2010.12.15"]
[Round "-"]
[White "hipposcottimus"]
[Black "tripp123"]
[Result "1-0"]
[CurrentPosition "3r4/1k1n1pp1/1Bp2nb1/1p1p4/8/1PP1Q1P1/r4RK1/8 b - -"]
[Timezone "UTC"]
[ECO "B12"]
[ECOUrl "https://www.chess.com/openings/Caro-Kann-Defense-2.d4-d5-3.Nf3"]
[UTCDate "2010.12.15"]
[UTCTime "01:18:51"]
[WhiteElo "1627"]
[BlackElo "1627"]
[TimeControl "60"]
[Termination "hipposcottimus won on time"]
[StartTime "01:18:51"]
[EndDate "2010.12.15"]
[EndTime "01:21:01"]
[Link "https://www.chess.com/game/live/77390827"]

1. e4 {[%clk 0:01:00]} 1... c6 {[%clk 0:01:00]} 2. Nf3 {[%clk 0:00:59.8]} 2... d5 {[%clk 0:00:59.2]} 3. d4 {[%clk 0:00:59.5]} 3... dxe4 {[%clk 0:00:57.9]} 4. Ng5 {[%clk 0:00:59.2]} 4... Nf6 {[%clk 0:00:55.1]} 5. Nc3 {[%clk 0:00:56]} 5... Bf5 {[%clk 0:00:53.5]} 6. f3 {[%clk 0:00:54]} 6... exf3 {[%clk 0:00:51.5]} 7. Nxf3 {[%clk 0:00:53.7]} 7... Bg4 {[%clk 0:00:50]} 8. Be2 {[%clk 0:00:52.9]} 8... e6 {[%clk 0:00:49]} 9. O-O {[%clk 0:00:51.5]} 9... Bb4 {[%clk 0:00:47.1]} 10. Ne5 {[%clk 0:00:49.5]} 10... Bxe2 {[%clk 0:00:45.2]} 11. Ng4 {[%clk 0:00:48.8]} 11... Bxg4 {[%clk 0:00:43.5]} 12. Qd3 {[%clk 0:00:37.8]} 12... Bf5 {[%clk 0:00:41.4]} 13. Qe3 {[%clk 0:00:36.2]} 13... Nbd7 {[%clk 0:00:36.8]} 14. Ne2 {[%clk 0:00:35.9]} 14... Bd6 {[%clk 0:00:32.9]} 15. Ng3 {[%clk 0:00:35.5]} 15... Bg6 {[%clk 0:00:29.9]} 16. b3 {[%clk 0:00:30.8]} 16... Qc7 {[%clk 0:00:28.9]} 17. a4 {[%clk 0:00:30.1]} 17... Bxg3 {[%clk 0:00:27.1]} 18. hxg3 {[%clk 0:00:29.1]} 18... O-O-O {[%clk 0:00:25.2]} 19. Ba3 {[%clk 0:00:28.6]} 19... h5 {[%clk 0:00:23.3]} 20. Bc5 {[%clk 0:00:28.1]} 20... b6 {[%clk 0:00:19.4]} 21. Bb4 {[%clk 0:00:25.7]} 21... h4 {[%clk 0:00:17.9]} 22. d5 {[%clk 0:00:25.2]} 22... exd5 {[%clk 0:00:16.6]} 23. a5 {[%clk 0:00:21.3]} 23... b5 {[%clk 0:00:13.8]} 24. Bc5 {[%clk 0:00:18.5]} 24... h3 {[%clk 0:00:10.5]} 25. Bxa7 {[%clk 0:00:17.2]} 25... hxg2 {[%clk 0:00:08.6]} 26. Bb6 {[%clk 0:00:16.9]} 26... Qb7 {[%clk 0:00:06.9]} 27. Rf2 {[%clk 0:00:15.1]} 27... Rh1+ {[%clk 0:00:02.6]} 28. Kxg2 {[%clk 0:00:13]} 28... Rxa1 {[%clk 0:00:01.7]} 29. a6 {[%clk 0:00:08.3]} 29... Ra2 {[%clk 0:00:01.6]} 30. axb7+ {[%clk 0:00:06.7]} 30... Kxb7 {[%clk 0:00:01]} 31. c3 {[%clk 0:00:04.5]} 1-0

[Event "Live Chess"]
[Site "Chess.com"]
[Date "2010.12.15"]
[Round "-"]
[White "primetheGREAT"]
[Black "hipposcottimus"]
[Result "1-0"]
[CurrentPosition "r3r1k1/p4pp1/1p5p/1qp3bN/6Q1/PnP5/1PKN2PP/3R3R b - -"]
[Timezone "UTC"]
[ECO "C23"]
[ECOUrl "https://www.chess.com/openings/Bishops-Opening-2...Nc6-3.d3-Nf6"]
[UTCDate "2010.12.15"]
[UTCTime "01:03:21"]
[WhiteElo "1423"]
[BlackElo "1619"]
[TimeControl "60"]
[Termination "primetheGREAT won on time"]
[StartTime "01:03:21"]
[EndDate "2010.12.15"]
[EndTime "01:05:28"]
[Link "https://www.chess.com/game/live/77387282"]

1. e4 {[%clk 0:01:00]} 1... e5 {[%clk 0:01:00]} 2. Bc4 {[%clk 0:00:59.4]} 2... Nc6 {[%clk 0:00:59.6]} 3. d3 {[%clk 0:00:58.6]} 3... Nf6 {[%clk 0:00:58.7]} 4. c3 {[%clk 0:00:58]} 4... d5 {[%clk 0:00:58.3]} 5. exd5 {[%clk 0:00:56.4]} 5... Nxd5 {[%clk 0:00:58]} 6. Qf3 {[%clk 0:00:55.8]} 6... Nf6 {[%clk 0:00:54.2]} 7. Bg5 {[%clk 0:00:53.3]} 7... Bg4 {[%clk 0:00:53.6]} 8. Qe3 {[%clk 0:00:51.4]} 8... Be7 {[%clk 0:00:50]} 9. f3 {[%clk 0:00:50.3]} 9... Bh5 {[%clk 0:00:41.7]} 10. Nd2 {[%clk 0:00:48.7]} 10... Bg6 {[%clk 0:00:39.7]} 11. Bxf6 {[%clk 0:00:44.8]} 11... Bxf6 {[%clk 0:00:36.7]} 12. O-O-O {[%clk 0:00:43]} 12... O-O {[%clk 0:00:35.4]} 13. a3 {[%clk 0:00:40.5]} 13... Na5 {[%clk 0:00:34.9]} 14. Ba2 {[%clk 0:00:39]} 14... b6 {[%clk 0:00:31.3]} 15. Nh3 {[%clk 0:00:36.5]} 15... c5 {[%clk 0:00:30]} 16. f4 {[%clk 0:00:35.5]} 16... exf4 {[%clk 0:00:28.4]} 17. Nxf4 {[%clk 0:00:33.5]} 17... Re8 {[%clk 0:00:27.5]} 18. Qh3 {[%clk 0:00:31.4]} 18... h6 {[%clk 0:00:19.4]} 19. Bb1 {[%clk 0:00:30.1]} 19... Bh7 {[%clk 0:00:16]} 20. Nh5 {[%clk 0:00:27.4]} 20... Bg5 {[%clk 0:00:13]} 21. Qg4 {[%clk 0:00:24.6]} 21... Bxd3 {[%clk 0:00:09.4]} 22. Bxd3 {[%clk 0:00:22.4]} 22... Qxd3 {[%clk 0:00:08.5]} 23. Nf4 {[%clk 0:00:14.6]} 23... Qb5 {[%clk 0:00:04.4]} 24. Nh5 {[%clk 0:00:09.5]} 24... Nb3+ {[%clk 0:00:02.8]} 25. Kc2 {[%clk 0:00:03.4]} 1-0

[Event "Live Chess"]
[Site "Chess.com"]
[Date "2010.12.15"]
[Round "-"]
[White "hipposcottimus"]
[Black "primetheGREAT"]
[Result "0-1"]
[CurrentPosition "2k5/Rp6/2pp4/3np3/4P3/1PK5/1PP1q1r1/8 w - -"]
[Timezone "UTC"]
[ECO "C41"]
[ECOUrl "https://www.chess.com/openings/Philidor-Defense-3.Bc4"]
[UTCDate "2010.12.15"]
[UTCTime "01:00:50"]
[WhiteElo "1630"]
[BlackElo "1410"]
[TimeControl "60"]
[Termination "primetheGREAT won on time"]
[StartTime "01:00:50"]
[EndDate "2010.12.15"]
[EndTime "01:02:47"]
[Link "https://www.chess.com/game/live/77386688"]

1. e4 {[%clk 0:01:00]} 1... e5 {[%clk 0:01:00]} 2. Nf3 {[%clk 0:00:59.3]} 2... d6 {[%clk 0:00:59.2]} 3. Bc4 {[%clk 0:00:59.1]} 3... c6 {[%clk 0:00:58.6]} 4. d4 {[%clk 0:00:58.8]} 4... f6 {[%clk 0:00:58.1]} 5. Bb3 {[%clk 0:00:55.7]} 5... h5 {[%clk 0:00:57.5]} 6. O-O {[%clk 0:00:55.4]} 6... Qc7 {[%clk 0:00:55.9]} 7. d5 {[%clk 0:00:53.7]} 7... g5 {[%clk 0:00:53.2]} 8. Nxg5 {[%clk 0:00:50]} 8... fxg5 {[%clk 0:00:51.7]} 9. Bxg5 {[%clk 0:00:49.7]} 9... Bg4 {[%clk 0:00:49.7]} 10. f3 {[%clk 0:00:48.4]} 10... Be7 {[%clk 0:00:47.8]} 11. Qd2 {[%clk 0:00:43.3]} 11... Nd7 {[%clk 0:00:46.3]} 12. fxg4 {[%clk 0:00:40.1]} 12... Bxg5 {[%clk 0:00:44.7]} 13. Qxg5 {[%clk 0:00:38]} 13... Ne7 {[%clk 0:00:43.5]} 14. gxh5 {[%clk 0:00:33.1]} 14... Nc5 {[%clk 0:00:40.8]} 15. Nc3 {[%clk 0:00:28.9]} 15... O-O-O {[%clk 0:00:39.8]} 16. h6 {[%clk 0:00:27.2]} 16... Rdg8 {[%clk 0:00:36.2]} 17. Qh5 {[%clk 0:00:24.9]} 17... Nxb3 {[%clk 0:00:33.2]} 18. h7 {[%clk 0:00:21.8]} 18... Rg7 {[%clk 0:00:29.9]} 19. axb3 {[%clk 0:00:19.5]} 19... Rgxh7 {[%clk 0:00:28.6]} 20. Qe2 {[%clk 0:00:18.8]} 20... Rxh2 {[%clk 0:00:26.9]} 21. Kf2 {[%clk 0:00:17.3]} 21... Qb6+ {[%clk 0:00:24.6]} 22. Ke1 {[%clk 0:00:14.1]} 22... Rg8 {[%clk 0:00:20.8]} 23. Kd2 {[%clk 0:00:13.7]} 23... Rhxg2 {[%clk 0:00:19.1]} 24. Rf2 {[%clk 0:00:13.4]} 24... Rxf2 {[%clk 0:00:16.5]} 25. Qxf2 {[%clk 0:00:12.3]} 25... Qxf2+ {[%clk 0:00:15.3]} 26. Ne2 {[%clk 0:00:12.1]} 26... Rg2 {[%clk 0:00:12.2]} 27. Kc3 {[%clk 0:00:10.2]} 27... Qxe2 {[%clk 0:00:11.1]} 28. Rxa7 {[%clk 0:00:08.9]} 28... Nxd5+ {[%clk 0:00:08.3]} 0-1

[Event "Live Chess"]
[Site "Chess.com"]
[Date "2010.12.15"]
[Round "-"]
[White "cesarcavalli"]
[Black "hipposcottimus"]
[Result "1-0"]
[CurrentPosition "rn3rk1/ppq2ppp/2pP1n2/3p3b/3Pp3/1P2PN1P/PB1NBPP1/R2Q1RK1 b - -"]
[Timezone "UTC"]
[ECO "D02"]
[ECOUrl "https://www.chess.com/openings/Queens-Pawn-Opening-Anti-Torre-Attack"]
[UTCDate "2010.12.15"]
[UTCTime "00:58:51"]
[WhiteElo "1805"]
[BlackElo "1642"]
[TimeControl "60"]
[Termination "cesarcavalli won by resignation"]
[StartTime "00:58:51"]
[EndDate "2010.12.15"]
[EndTime "00:59:42"]
[Link "https://www.chess.com/game/live/77386298"]

1. d4 {[%clk 0:01:00]} 1... d5 {[%clk 0:01:00]} 2. Nf3 {[%clk 0:00:59.7]} 2... Bg4 {[%clk 0:00:58]} 3. e3 {[%clk 0:00:59.5]} 3... Nf6 {[%clk 0:00:55.8]} 4. Be2 {[%clk 0:00:58.9]} 4... e6 {[%clk 0:00:53.7]} 5. O-O {[%clk 0:00:58.1]} 5... Bd6 {[%clk 0:00:51.3]} 6. b3 {[%clk 0:00:57.3]} 6... c6 {[%clk 0:00:49.1]} 7. Bb2 {[%clk 0:00:56.9]} 7... O-O {[%clk 0:00:47.1]} 8. Nbd2 {[%clk 0:00:56.6]} 8... Qc7 {[%clk 0:00:45.8]} 9. h3 {[%clk 0:00:54.1]} 9... Bh5 {[%clk 0:00:43.8]} 10. c4 {[%clk 0:00:49.6]} 10... e5 {[%clk 0:00:33.8]} 11. c5 {[%clk 0:00:44.3]} 11... e4 {[%clk 0:00:32.4]} 12. cxd6 {[%clk 0:00:42.4]} 1-0